fUST/lending_fUST_20251216
["ID","MTS","AMOUNT","RATE_DAILY","PERIOD"]
[398586779,1765857081368,-613.42,0.00012328,2]
[398586780,1765857081377,-852.9,0.00012328,2]
[398586781,1765857081386,-1741.83,0.00012328,2]
[398586782,1765857081395,-500.0,0.00012328,2]
[398586783,1765857081404,-500.0,0.00012328,2]
[398586784,1765857081414,-579.96,0.00012328,2]
[398586785,1765857081423,-502.61999494,0.00012328,2]
[398586786,1765857081433,-500.0,0.00012328,2]
[398586787,1765857081443,-500.0,0.00012328,2]
[398586788,1765857081453,-500.0,0.00012328,2]
[398586789,1765857081465,-882.7,0.00012328,2]
[398586790,1765857081475,-500.0,0.00012328,2]
[398586791,1765857081485,-909.29,0.00012328,2]
[398586792,1765857081494,-500.0,0.00012328,2]
[398586793,1765857081503,-500.0,0.00012328,2]
[398586794,1765857081512,-569.54558007,0.00012328,2]
[398586795,1765857081522,-500.0,0.00012328,2]
[398586796,1765857081532,-500.0,0.00012328,2]
[398586797,1765857081543,-500.0,0.00012328,2]
[398586798,1765857081554,-500.0,0.00012328,2]
[398586799,1765857081565,-500.0,0.00012328,2]
[398586800,1765857081574,-1389.03,0.00012328,2]
[398586801,1765857081584,-652.64,0.00012328,2]
[398586802,1765857081593,-500.0,0.00012328,2]
[398586803,1765857081602,-233.56192824,0.00012328,2]
[398586804,1765857081611,-863.06,0.00012328,2]
[398586805,1765857081620,-946.95,0.00012328,2]
[398586806,1765857081630,-500.0,0.00012328,2]
[398586807,1765857081641,-500.0,0.00012328,2]
[398586808,1765857081650,-752.63,0.00012328,2]
[398586809,1765857081660,-500.0,0.00012328,2]
[398586810,1765857081669,-500.0,0.00012328,2]
[398586811,1765857081678,-500.0,0.00012328,2]
[398586812,1765857081687,-1824.47,0.00012328,2]
[398586813,1765857081698,-631.43,0.00012328,2]
[398586814,1765857081707,-548.39,0.00012328,2]
[398586815,1765857081719,-500.0,0.00012328,2]
[398586816,1765857081728,-5069.0,0.00012328,2]
[398586817,1765857081738,-869.38,0.00012328,2]
[398586818,1765857081747,-500.0,0.00012328,2]
[398586819,1765857081756,-1418.86,0.00012328,2]
[398586820,1765857081766,-500.0,0.00012328,2]
[398586821,1765857081775,-500.0,0.00012328,2]
[398586822,1765857081785,-500.0,0.00012328,2]
[398586823,1765857081794,-1398.62,0.00012328,2]
[398586824,1765857081804,-2490.08,0.00012328,2]
[398586825,1765857081813,-500.0,0.00012328,2]
[398586826,1765857081822,-500.0,0.00012328,2]
[398586827,1765857081831,-886.06,0.00012328,2]
[398586828,1765857081840,-500.0,0.00012328,2]
[398586829,1765857081850,-555.44,0.00012328,2]
[398586830,1765857081859,-500.0,0.00012328,2]
[398586831,1765857081869,-500.0,0.00012328,2]
[398586832,1765857081879,-886.48,0.00012328,2]
[398586833,1765857081888,-528.18,0.00012328,2]
[398586834,1765857081898,-1144.03,0.00012328,2]
[398586835,1765857081907,-1839.21,0.00012328,2]
[398586836,1765857081916,-500.0,0.00012328,2]
[398586837,1765857081925,-500.0,0.00012328,2]
[398586838,1765857081934,-760.81,0.00012328,2]
[398586839,1765857081943,-500.0,0.00012328,2]
[398586840,1765857081952,-578.54,0.00012328,2]
[398586841,1765857081961,-500.0,0.00012328,2]
[398586842,1765857081971,-525.22,0.00012328,2]
[398586843,1765857081980,-1799.91,0.00012328,2]
[398586844,1765857081989,-500.0,0.00012328,2]
[398586845,1765857081998,-1395.69,0.00012328,2]
[398586846,1765857082008,-500.0,0.00012328,2]
[398586847,1765857082017,-500.0,0.00012328,2]
[398586848,1765857082026,-500.0,0.00012328,2]
[398586849,1765857082035,-500.0,0.00012328,2]
[398586850,1765857082044,-2489.6,0.00012328,2]
[398586851,1765857082053,-500.0,0.00012328,2]
[398586852,1765857082063,-500.0,0.00012328,2]
[398586853,1765857082072,-500.0,0.00012328,2]
[398586854,1765857082082,-500.0,0.00012328,2]
[398586855,1765857082091,-500.0,0.00012328,2]
[398586856,1765857082102,-3564.58,0.00012328,2]
[398586857,1765857082111,-1851.38,0.00012328,2]
[398586858,1765857082120,-1892.77,0.00012328,2]
[398586859,1765857082131,-500.0,0.00012328,2]
[398586860,1765857082142,-500.0,0.00012328,2]
[398586861,1765857082152,-625.7,0.00012328,2]
[398586862,1765857082161,-554.05,0.00012328,2]
[398586863,1765857082170,-614.05,0.00012328,2]
[398586864,1765857082181,-500.0,0.00012328,2]
[398586865,1765857082199,-1268.17,0.00012328,2]
[398586866,1765857082208,-500.0,0.00012328,2]
[398586867,1765857082218,-500.0,0.00012328,2]
[398586868,1765857082227,-2548.3,0.00012328,2]
[398586869,1765857082236,-964.39,0.00012328,2]
[398586870,1765857082246,-500.0,0.00012328,2]
[398586871,1765857082255,-500.0,0.00012328,2]
[398586872,1765857082264,-500.0,0.00012328,2]
[398586873,1765857082274,-2757.29,0.00012328,2]
[398586874,1765857082283,-921.12,0.00012328,2]
[398586875,1765857082292,-1379.13,0.00012328,2]
[398586876,1765857082302,-500.0,0.00012328,2]
[398586877,1765857082311,-1281.57,0.00012328,2]
[398586878,1765857082321,-500.0,0.00012328,2]
[398586879,1765857082330,-500.0,0.00012328,2]
[398586880,1765857082340,-500.0,0.00012328,2]
[398586881,1765857082350,-591.0,0.00012328,2]
[398586882,1765857082360,-500.0,0.00012328,2]
[398586883,1765857082369,-500.0,0.00012328,2]
[398586884,1765857082378,-621.24,0.00012328,2]
[398586885,1765857082388,-500.0,0.00012328,2]
[398586886,1765857082397,-500.0,0.00012328,2]
[398586887,1765857082406,-858.92,0.00012328,2]
[398586888,1765857082417,-604.25,0.00012328,2]
[398586889,1765857082426,-601.93,0.00012328,2]
[398586890,1765857082436,-1724.77,0.00012328,2]
[398586891,1765857082445,-500.0,0.00012328,2]
[398586892,1765857082455,-1883.58,0.00012328,2]
[398586893,1765857082467,-500.0,0.00012328,2]
[398586894,1765857082476,-500.0,0.00012328,2]
[398586895,1765857082486,-897.25,0.00012328,2]
[398586896,1765857082496,-1210.79,0.00012328,2]
[398586897,1765857082506,-1351.77,0.00012328,2]
[398586898,1765857082517,-500.0,0.00012328,2]
[398586899,1765857082527,-773.94,0.00012328,2]
[398586900,1765857082536,-500.0,0.00012328,2]
[398586901,1765857082547,-724.47,0.00012328,2]
[398586902,1765857082558,-500.0,0.00012328,2]
[398586903,1765857082567,-1559.66,0.00012328,2]
[398586904,1765857082577,-500.0,0.00012328,2]
[398586905,1765857082587,-658.19,0.00012328,2]
[398586906,1765857082596,-500.0,0.00012328,2]
[398586907,1765857082608,-901.9,0.00012328,2]
[398586908,1765857082617,-500.0,0.00012328,2]
[398586909,1765857082627,-1664.36,0.00012328,2]
[398586910,1765857082636,-500.0,0.00012328,2]
[398586911,1765857082801,-500.0,0.00012328,2]
[398586912,1765857082815,-540.02,0.00012328,2]
[398586913,1765857082824,-1404.56,0.00012328,2]
[398586914,1765857082834,-1280.6,0.00012328,2]
[398586915,1765857082844,-500.0,0.00012328,2]
[398586916,1765857082854,-500.0,0.00012328,2]
[398586917,1765857082864,-577.11,0.00012328,2]
[398586918,1765857082873,-517.8,0.00012328,2]
[398586919,1765857082882,-500.0,0.00012328,2]
[398586920,1765857082891,-851.34,0.00012328,2]
[398586921,1765857082901,-500.0,0.00012328,2]
[398586922,1765857082911,-1225.41,0.00012328,2]
[398586923,1765857082921,-500.0,0.00012328,2]
[398586924,1765857082931,-500.0,0.00012328,2]
[398586925,1765857082940,-500.0,0.00012328,2]
[398586926,1765857082950,-500.0,0.00012328,2]
[398586927,1765857082959,-6779.98,0.00012328,2]
[398586928,1765857082968,-500.0,0.00012328,2]
[398586929,1765857082977,-500.0,0.00012328,2]
[398586930,1765857082987,-500.0,0.00012328,2]
[398586931,1765857082996,-500.0,0.00012328,2]
[398586932,1765857083006,-582.90282097,0.00012328,2]
[398586933,1765857083016,-879.62,0.00012328,2]
[398586934,1765857083026,-500.0,0.00012328,2]
[398586935,1765857083036,-849.34,0.00012328,2]
[398586936,1765857083046,-500.0,0.00012328,2]
[398586937,1765857083056,-4220.16,0.00012328,2]
[398586938,1765857083066,-500.0,0.00012328,2]
[398586939,1765857083075,-500.0,0.00012328,2]
[398586940,1765857083085,-500.0,0.00012328,2]
[398586941,1765857083095,-500.0,0.00012328,2]
[398586942,1765857083104,-2541.48,0.00012328,2]
[398586943,1765857083113,-500.0,0.00012328,2]
[398586944,1765857083124,-618.0,0.00012328,2]
[398586945,1765857083137,-1330.94,0.00012328,2]
[398586946,1765857083147,-502.75,0.00012328,2]
[398586947,1765857083157,-500.0,0.00012328,2]
[398586948,1765857083166,-1721.89,0.00012328,2]
[398586949,1765857083176,-1471.73,0.00012328,2]
[398586950,1765857083185,-1794.66,0.00012328,2]
[398586951,1765857083195,-500.0,0.00012328,2]
[398586952,1765857083208,-500.0,0.00012328,2]
[398586953,1765857083217,-500.0,0.00012328,2]
[398586954,1765857083226,-1436.2,0.00012328,2]
[398586955,1765857083236,-919.0,0.00012328,2]
[398586956,1765857083245,-1483.78,0.00012328,2]
[398586957,1765857083254,-500.0,0.00012328,2]
[398586958,1765857083263,-9283.55,0.00012328,2]
[398586959,1765857083273,-1109.0,0.00012328,2]
[398586960,1765857083283,-930.78,0.00012328,2]
[398586961,1765857083292,-500.0,0.00012328,2]
[398586962,1765857083302,-700.85,0.00012328,2]
[398586963,1765857083312,-2453.55,0.00012328,2]
[398586964,1765857083321,-707.6,0.00012328,2]
[398586965,1765857083331,-536.25,0.00012328,2]
[398586966,1765857083341,-500.0,0.00012328,2]
[398586967,1765857083350,-500.0,0.00012328,2]
[398586968,1765857083360,-990.55,0.00012328,2]
[398586969,1765857083370,-500.0,0.00012328,2]
[398586970,1765857083379,-2349.49,0.00012328,2]
[398586971,1765857083389,-2196.03,0.00012328,2]
[398586972,1765857083398,-540.27378431,0.00012328,2]
[398586973,1765857083407,-500.0,0.00012328,2]
[398586974,1765857083417,-1420.86,0.00012328,2]
[398586975,1765857083427,-1354.29,0.00012328,2]
[398586976,1765857083436,-1566.76,0.00012328,2]
[398586977,1765857083446,-500.0,0.00012328,2]
[398586978,1765857083456,-1789.22,0.00012328,2]
[398586979,1765857083465,-500.0,0.00012328,2]
[398586980,1765857083475,-975.67,0.00012328,2]
[398586981,1765857083485,-997.09,0.00012328,2]
[398586982,1765857083495,-1344.17,0.00012328,2]
[398586983,1765857083505,-600.75,0.00012328,2]
[398586984,1765857083514,-500.0,0.00012328,2]
[398586985,1765857083524,-241.53727917,0.00012328,2]
[398586986,1765857083533,-4842.15,0.00012328,2]
[398586987,1765857083543,-500.0,0.00012328,2]
[398586988,1765857083558,-938.39,0.00012328,2]
[398586989,1765857083579,-513.63,0.00012328,2]
[398586990,1765857083592,-1372.69,0.00012328,2]
[398586991,1765857083601,-500.0,0.00012328,2]
[398586992,1765857083611,-500.0,0.00012328,2]
[398586993,1765857083620,-1192.19,0.00012328,2]
[398586994,1765857083629,-825.5,0.00012328,2]
[398586995,1765857083638,-2748.55,0.00012328,2]
[398586996,1765857083648,-500.0,0.00012328,2]
[398586997,1765857083657,-708.11,0.00012328,2]
[398586998,1765857083666,-2322.09,0.00012328,2]
[398586999,1765857083675,-2125.4,0.00012328,2]
[398587000,1765857083684,-500.0,0.00012328,2]
[398587001,1765857083693,-500.0,0.00012328,2]
[398587002,1765857083702,-500.0,0.00012328,2]
[398587003,1765857083711,-6830.61,0.00012328,2]
[398587004,1765857083721,-8377.94,0.00012328,2]
[398587005,1765857083730,-500.0,0.00012328,2]
[398587006,1765857083740,-2121.87,0.00012328,2]
[398587007,1765857083749,-500.0,0.00012328,2]
[398587008,1765857083759,-858.84,0.00012328,2]
[398587009,1765857083768,-945.29,0.00012328,2]
[398587010,1765857083778,-1092.05,0.00012328,2]
[398587011,1765857083787,-580.26,0.00012328,2]
[398587012,1765857083797,-502.24810784,0.00012328,2]
[398587013,1765857083806,-500.0,0.00012328,2]
[398587014,1765857083816,-500.0,0.00012328,2]
[398587015,1765857083825,-2445.72,0.00012328,2]
[398587016,1765857083834,-500.0,0.00012328,2]
[398587017,1765857083844,-3903.36,0.00012328,2]
[398587018,1765857083853,-537.08,0.00012328,2]
[398587019,1765857083864,-618.36,0.00012328,2]
[398587020,1765857083873,-4243.55,0.00012328,2]
[398587021,1765857083883,-500.0,0.00012328,2]
[398587022,1765857083892,-171.66879371,0.00012328,2]
[398587023,1765857083902,-500.0,0.00012328,2]
[398587024,1765857083911,-1422.62,0.00012328,2]
[398587025,1765857083921,-800.38,0.00012328,2]
[398587026,1765857083931,-1202.09,0.00012328,2]
[398587027,1765857083941,-799.6,0.00012328,2]
[398587028,1765857083950,-520.25,0.00012328,2]
[398587029,1765857083960,-14584.18,0.00012328,2]
[398587030,1765857083970,-330.59657416,0.00012328,2]
[398587031,1765857083980,-2341.35,0.00012328,2]
[398587032,1765857083990,-500.0,0.00012328,2]
[398587033,1765857084000,-614.63,0.00012328,2]
[398587034,1765857084010,-2042.99,0.00012328,2]
[398587035,1765857084019,-3921.7,0.00012328,2]
[398587036,1765857084029,-500.0,0.00012328,2]
[398587037,1765857084039,-2154.94,0.00012328,2]
[398587038,1765857084048,-1164.37,0.00012328,2]
[398587039,1765857084057,-1452.17,0.00012328,2]
[398587040,1765857084067,-940.07,0.00012328,2]
[398587041,1765857084081,-500.0,0.00012328,2]
[398587042,1765857084090,-3354.89,0.00012328,2]
[398587043,1765857084100,-500.0,0.00012328,2]
[398587044,1765857084109,-885.63,0.00012328,2]
[398587045,1765857084119,-500.0,0.00012328,2]
[398587046,1765857084132,-583.17,0.00012328,2]
[398587047,1765857084143,-934.17,0.00012328,2]
[398587048,1765857084153,-500.0,0.00012328,2]
[398587049,1765857084163,-500.0,0.00012328,2]
[398587050,1765857084174,-2662.12,0.00012328,2]
[398587051,1765857084184,-1389.33,0.00012328,2]
[398587052,1765857084194,-2691.53,0.00012328,2]
[398587053,1765857084204,-500.0,0.00012328,2]
[398587054,1765857084216,-500.0,0.00012328,2]
[398587055,1765857084226,-500.0,0.00012328,2]
[398587056,1765857084235,-500.0,0.00012328,2]
[398587057,1765857084244,-947.29,0.00012328,2]
[398587058,1765857084254,-500.0,0.00012328,2]
[398587059,1765857084264,-500.0,0.00012328,2]
[398587060,1765857084274,-1434.18,0.00012328,2]
[398587061,1765857084284,-607.29,0.00012328,2]
[398587062,1765857084295,-500.0,0.00012328,2]
[398587063,1765857084305,-500.0,0.00012328,2]
[398587064,1765857084314,-500.0,0.00012328,2]
[398587065,1765857084323,-3493.92,0.00012328,2]
[398587066,1765857084333,-500.0,0.00012328,2]
[398587067,1765857084342,-500.0,0.00012328,2]
[398587068,1765857084351,-1734.78,0.00012328,2]
[398587069,1765857084360,-529.53,0.00012328,2]
[398587070,1765857084369,-500.0,0.00012328,2]
[398587071,1765857084379,-1497.62,0.00012328,2]
[398587072,1765857084388,-1890.34,0.00012328,2]
[398587073,1765857084397,-1724.14,0.00012328,2]
[398587074,1765857084407,-1321.15,0.00012328,2]
[398587075,1765857084415,-627.84,0.00012328,2]
[398587076,1765857084425,-1136.33,0.00012328,2]
[398587077,1765857084435,-500.0,0.00012328,2]
[398587078,1765857084444,-571.80753153,0.00012328,2]
[398587079,1765857084453,-2584.7,0.00012328,2]
[398587080,1765857084462,-500.0,0.00012328,2]
[398587081,1765857084471,-523.47,0.00012328,2]
[398587082,1765857084481,-906.3,0.00012328,2]
[398587083,1765857084490,-500.0,0.00012328,2]
[398587084,1765857084499,-860.33,0.00012328,2]
[398587085,1765857084508,-500.0,0.00012328,2]
[398587086,1765857084518,-1103.9,0.00012328,2]
[398587087,1765857084527,-526.2,0.00012328,2]
[398587088,1765857084537,-625.36,0.00012328,2]
[398587089,1765857084546,-500.0,0.00012328,2]
[398587090,1765857084557,-608.20968049,0.00012328,2]
[398587091,1765857084567,-500.0,0.00012328,2]
[398587092,1765857084576,-3387.17,0.00012328,2]
[398587093,1765857084585,-838.05,0.00012328,2]
[398587094,1765857084594,-500.0,0.00012328,2]
[398587095,1765857084603,-717.42,0.00012328,2]
[398587096,1765857084612,-500.0,0.00012328,2]
[398587097,1765857084621,-11122.08,0.00012328,2]
[398587098,1765857084631,-1435.24,0.00012328,2]
[398587099,1765857084640,-645.68,0.00012328,2]
[398587100,1765857084649,-22080.53,0.00012328,2]
[398587101,1765857084659,-3719.53,0.00012328,2]
[398587102,1765857084668,-500.0,0.00012328,2]
[398587103,1765857084678,-835.99,0.00012328,2]
[398587104,1765857084687,-1808.12,0.00012328,2]
[398587105,1765857084696,-500.0,0.00012328,2]
[398587106,1765857084706,-500.0,0.00012328,2]
[398587107,1765857084716,-500.0,0.00012328,2]
[398587108,1765857084725,-500.0,0.00012328,2]
[398587109,1765857084736,-8246.11,0.00012328,2]
[398587110,1765857084748,-1665.52,0.00012328,2]
[398587111,1765857084758,-500.0,0.00012328,2]
[398587112,1765857084769,-500.0,0.00012328,2]
[398587113,1765857084779,-500.0,0.00012328,2]
[398587114,1765857084789,-505.05,0.00012328,2]
[398587115,1765857084799,-500.0,0.00012328,2]
[398587116,1765857084808,-5019.38,0.00012328,2]
[398587117,1765857084817,-688.63,0.00012328,2]
[398587118,1765857084826,-980.38,0.00012328,2]
[398587119,1765857084835,-2863.98,0.00012328,2]
[398587120,1765857084844,-2333.27,0.00012328,2]
[398587121,1765857084853,-500.0,0.00012328,2]
[398587122,1765857084862,-500.0,0.00012328,2]
[398587123,1765857084871,-500.0,0.00012328,2]
[398587124,1765857084880,-884.98,0.00012328,2]
[398587125,1765857084889,-2011.13,0.00012328,2]
[398587126,1765857084898,-500.0,0.00012328,2]
[398587127,1765857084907,-561.14,0.00012328,2]
[398587128,1765857084915,-1161.7,0.00012328,2]
[398587129,1765857084924,-5555.9,0.00012328,2]
[398587130,1765857084933,-1243.71,0.00012328,2]
[398587131,1765857084942,-35354.14,0.00012328,2]
[398587132,1765857084950,-9588.87,0.00012328,2]
[398587133,1765857084959,-500.0,0.00012328,2]
[398587134,1765857084968,-1419.14,0.00012328,2]
[398587135,1765857084977,-334.18990481,0.00012328,2]
[398587136,1765857084986,-1172.55,0.00012328,2]
[398587137,1765857084994,-500.0,0.00012328,2]
[398587138,1765857085003,-500.0,0.00012328,2]
[398587139,1765857085012,-2089.03,0.00012328,2]
[398587140,1765857085021,-500.0,0.00012328,2]
[398587141,1765857085030,-3963.15,0.00012328,2]
[398587142,1765857085038,-2257.39,0.00012328,2]
[398587143,1765857085047,-1097.79,0.00012328,2]
[398587144,1765857085056,-1991.38,0.00012328,2]
[398587145,1765857085065,-841.22,0.00012328,2]
[398587146,1765857085074,-500.0,0.00012328,2]
[398587147,1765857085082,-500.0,0.00012328,2]
[398587148,1765857085091,-500.0,0.00012328,2]
[398587149,1765857085100,-500.0,0.00012328,2]
[398587150,1765857085108,-800.38,0.00012328,2]
[398587151,1765857085117,-1431.03,0.00012328,2]
[398587152,1765857085126,-500.0,0.00012328,2]
[398587153,1765857085139,-8351.41,0.00012328,2]
[398587154,1765857085148,-500.0,0.00012328,2]
[398587155,1765857085157,-1423.76,0.00012328,2]
[398587156,1765857085165,-896.79,0.00012328,2]
[398587157,1765857085174,-500.0,0.00012328,2]
[398587158,1765857085183,-1140.27,0.00012328,2]
[398587159,1765857085191,-4075.24,0.00012328,2]
[398587160,1765857085200,-914.19,0.00012328,2]
[398587161,1765857085211,-500.0,0.00012328,2]
[398587162,1765857085220,-500.0,0.00012328,2]
[398587163,1765857085229,-3247.84,0.00012328,2]
[398587164,1765857085237,-1445.43,0.00012328,2]
[398587165,1765857085246,-500.0,0.00012328,2]
[398587166,1765857085255,-940.6,0.00012328,2]
[398587167,1765857085263,-500.0,0.00012328,2]
[398587168,1765857085271,-500.0,0.00012328,2]
[398587169,1765857085280,-500.0,0.00012328,2]
[398587170,1765857085289,-1956.75,0.00012328,2]
[398587171,1765857085441,-500.0,0.00012328,2]
[398587172,1765857085452,-1069.42,0.00012328,2]
[398587173,1765857085460,-2026.56,0.00012328,2]
[398587174,1765857085469,-1628.96,0.00012328,2]
[398587175,1765857085477,-1842.29,0.00012328,2]
[398587176,1765857085487,-1954.46,0.00012328,2]
[398587177,1765857085495,-500.0,0.00012328,2]
[398587178,1765857085504,-500.0,0.00012328,2]
[398587179,1765857085513,-500.0,0.00012328,2]
[398587180,1765857085522,-1249.58,0.00012328,2]
[398587181,1765857085531,-5203.28,0.00012328,2]
[398587182,1765857085540,-2367.41,0.00012328,2]
[398587183,1765857085548,-3863.02,0.00012328,2]
[398587184,1765857085557,-500.0,0.00012328,2]
[398587185,1765857085566,-2306.5,0.00012328,2]
[398587186,1765857085575,-5137.41,0.00012328,2]
[398587187,1765857085584,-500.0,0.00012328,2]
[398587188,1765857085593,-501.69615266,0.00012328,2]
[398587189,1765857085602,-674.15,0.00012328,2]
[398587190,1765857085611,-500.0,0.00012328,2]
[398587191,1765857085620,-560.29,0.00012328,2]
[398587192,1765857085629,-500.0,0.00012328,2]
[398587193,1765857085638,-2457.45,0.00012328,2]
[398587194,1765857085647,-1620.3,0.00012328,2]
[398587195,1765857085655,-935.88,0.00012328,2]
[398587196,1765857085664,-2175.69,0.00012328,2]
[398587197,1765857085673,-500.0,0.00012328,2]
[398587198,1765857085682,-500.0,0.00012328,2]
[398587199,1765857085691,-831.4,0.00012328,2]
[398587200,1765857085699,-537.44,0.00012328,2]
[398587201,1765857085708,-491.19498484,0.00012328,2]
[398587202,1765857085717,-500.0,0.00012328,2]
[398587203,1765857085726,-500.0,0.00012328,2]
[398587204,1765857085734,-500.0,0.00012328,2]
[398587205,1765857085743,-500.0,0.00012328,2]
[398587206,1765857085752,-1150.49,0.00012328,2]
[398587207,1765857085761,-152.08,0.000124,2]
[398587208,1765857085769,-1862.16509977,0.00012406,2]
[398587209,1765857085778,-453.85561801,0.0001245,2]
[398587210,1765857085787,-5736.89184879,0.000125,2]
[398587211,1765857085795,-160.0,0.000125,2]
[398587212,1765857085804,-1862.16509977,0.00012504,2]
[398587213,1765857085813,-640.24385345,0.00012595,2]
[398587214,1765857085822,-317.30206302,0.00012599,2]
[398587215,1765857085831,-161.0,0.000126,2]
[398587216,1765857085842,-161.0,0.000126,2]
[398587217,1765857085851,-161.0,0.000126,2]
[398587218,1765857085860,-152.08,0.000126,2]
[398587219,1765857085870,-3839.6,0.00012602,2]
[398587220,1765857085879,-500.0,0.00012602,2]
[398587221,1765857085887,-500.0,0.00012602,2]
[398587222,1765857085896,-500.0,0.00012602,2]
[398587223,1765857085904,-500.0,0.00012602,2]
[398587224,1765857085913,-500.0,0.00012602,2]
[398587225,1765857085921,-500.0,0.00012602,2]
[398587226,1765857085931,-500.0,0.00012602,2]
[398587227,1765857085940,-500.0,0.00012602,2]
[398587228,1765857085949,-500.0,0.00012602,2]
[398587229,1765857085958,-500.0,0.00012602,2]
[398587230,1765857085967,-500.0,0.00012602,2]
[398587231,1765857085976,-500.0,0.00012602,2]
[398587232,1765857085984,-241.92844557,0.00012602,2]
[398587233,1765857085994,-500.0,0.00012602,2]
[398587234,1765857086003,-500.0,0.00012602,2]
[398587235,1765857086012,-500.0,0.00012602,2]
[398587236,1765857086021,-500.0,0.00012602,2]
[398587237,1765857086031,-609.81,0.00012602,2]
[398587238,1765857086040,-600.92,0.00012602,2]
[398587239,1765857086049,-500.26,0.00012602,2]
[398587240,1765857086059,-500.0,0.00012602,2]
[398587241,1765857086068,-635.26,0.00012602,2]
[398587242,1765857086078,-500.0,0.00012602,2]
[398587243,1765857086088,-500.0,0.00012602,2]
[398587244,1765857086097,-2131.63,0.00012602,2]
[398587245,1765857086106,-500.0,0.00012602,2]
[398587246,1765857086115,-1239.05,0.00012602,2]
[398587247,1765857086124,-500.0,0.00012602,2]
[398587248,1765857086141,-832.5,0.00012602,2]
[398587249,1765857086150,-500.0,0.00012602,2]
[398587250,1765857086160,-500.0,0.00012602,2]
[398587251,1765857086171,-1281.42,0.00012602,2]
[398587252,1765857086180,-500.0,0.00012602,2]
[398587253,1765857086191,-706.65,0.00012602,2]
[398587254,1765857086201,-500.0,0.00012602,2]
[398587255,1765857086212,-500.0,0.00012602,2]
[398587256,1765857086224,-500.0,0.00012602,2]
[398587257,1765857086233,-500.0,0.00012602,2]
[398587258,1765857086242,-970.13,0.00012602,2]
[398587259,1765857086253,-500.0,0.00012602,2]
[398587260,1765857086262,-500.0,0.00012602,2]
[398587261,1765857086272,-905.09,0.00012602,2]
[398587262,1765857086282,-500.0,0.00012602,2]
[398587263,1765857086291,-500.0,0.00012602,2]
[398587264,1765857086302,-500.0,0.00012602,2]
[398587265,1765857086313,-1438.77,0.00012602,2]
[398587266,1765857086323,-2194.500583,0.00012602,2]
[398587267,1765857086332,-500.0,0.00012602,2]
[398587268,1765857086342,-500.0,0.00012602,2]
[398587269,1765857086352,-867.63,0.00012602,2]
[398587270,1765857086361,-500.81,0.00012602,2]
[398587271,1765857086370,-922.31,0.00012602,2]
[398587272,1765857086379,-500.0,0.00012602,2]
[398587273,1765857086389,-379.59677033,0.00012602,2]
[398587274,1765857086399,-808.83,0.00012602,2]
[398587275,1765857086409,-500.0,0.00012602,2]
[398587276,1765857086419,-772.63,0.00012602,2]
[398587277,1765857086429,-500.0,0.00012602,2]
[398587278,1765857086438,-500.0,0.00012602,2]